fUST/lending_fUST_20250627
["ID","MTS","AMOUNT","RATE_DAILY","PERIOD"]
[368148527,1751038271605,-729.15,0.00023835,2]
[368148528,1751038271615,-460.0,0.00023835,2]
[368148529,1751038271624,-1628.16,0.00023835,2]
[368148530,1751038271634,-518.51979428,0.00023835,2]
[368148531,1751038271644,-648.14,0.00023835,2]
[368148532,1751038271654,-551.64,0.00023835,2]
[368148533,1751038271663,-3080.1,0.00023835,2]
[368148534,1751038271673,-3962.82,0.00023835,2]
[368148535,1751038271683,-482.95,0.00023835,2]
[368148536,1751038271795,-460.0,0.00023835,2]
[368148537,1751038271806,-460.0,0.00023835,2]
[368148538,1751038271815,-2701.86,0.00023835,2]
[368148539,1751038271826,-960.06,0.00023835,2]
[368148540,1751038271836,-460.0,0.00023835,2]
[368148541,1751038271846,-264.39685134,0.00023835,2]
[368148542,1751038271858,-598.88,0.00023835,2]
[368148543,1751038271869,-460.0,0.00023835,2]
[368148544,1751038271879,-516.39,0.00023835,2]
[368148545,1751038271891,-1018.47,0.00023835,2]
[368148546,1751038271902,-1550.47,0.00023835,2]
[368148547,1751038271911,-1531.61,0.00023835,2]
[368148548,1751038271921,-1149.78,0.00023835,2]
[368148549,1751038271930,-1081.48,0.00023835,2]
[368148550,1751038271941,-584.17,0.00023835,2]
[368148551,1751038271950,-4259.37,0.00023835,2]
[368148552,1751038271960,-560.02,0.00023835,2]
[368148553,1751038271969,-1041.06,0.00023835,2]
[368148554,1751038271979,-460.0,0.00023835,2]
[368148555,1751038271988,-1937.51,0.00023835,2]
[368148556,1751038271998,-550.7,0.00023835,2]
[368148557,1751038272008,-3901.22,0.00023835,2]
[368148558,1751038272018,-1101.83,0.00023835,2]
[368148559,1751038272027,-930.7,0.00023835,2]
[368148560,1751038272036,-545.86,0.00023835,2]
[368148561,1751038272046,-693.99,0.00023835,2]
[368148562,1751038272056,-460.0,0.00023835,2]
[368148563,1751038272065,-855.32,0.00023835,2]
[368148564,1751038272075,-713.89,0.00023835,2]
[368148565,1751038272087,-500.0,0.00023887,2]
[368148566,1751038272097,-500.0,0.00023897,2]
[368148567,1751038272106,-500.0,0.000239,2]
[368148568,1751038272117,-900.0,0.00023914,2]
[368148569,1751038272126,-500.0,0.00023922,2]
[368148570,1751038272137,-5000.0,0.00023929,2]
[368148571,1751038272146,-500.0,0.00023932,2]
[368148572,1751038272155,-900.0,0.0002396,2]
[368148573,1751038272165,-1000.0,0.00023974,2]
[368148574,1751038272176,-151.0,0.00023988,6]
[368148575,1751038272185,-428.381506,0.00024,7]
[368148576,1751038272195,-428.381506,0.00024,7]
[368148577,1751038272204,-196.311275,0.00024,7]
[368148578,1751038272213,-196.311275,0.00024,7]
[368148579,1751038272222,-214.91804724,0.00024,7]
[368148580,1751038272231,-214.91804724,0.00024,10]
[368148581,1751038272242,-500.0,0.00024,9]
[368148582,1751038272251,-160.0,0.00024,7]
[368148583,1751038272261,-160.0,0.00024,7]
[368148584,1751038272270,-160.0,0.00024,7]
[368148585,1751038272280,-160.0,0.00024,7]
[368148586,1751038272290,-151.0,0.00024,7]
[368148587,1751038272299,-524.32400359,0.00024,3]
[368148588,1751038272309,-524.32400359,0.00024,3]
[368148589,1751038272319,-230.26210603,0.00024,7]
[368148590,1751038272329,-119144.53302062,0.00024,2]
[368148591,1751038272339,-178.2769559,0.00024,7]
[368148592,1751038272348,-158.0,0.00024,2]
[368148593,1751038272358,-160.0,0.00024,7]
[368148594,1751038272367,-160.0,0.00024,7]
[368148595,1751038272377,-437.811769,0.00024,7]
[368148596,1751038272387,-3202.96,0.00024,7]
[368148597,1751038272397,-437.811769,0.00024,7]
[368148598,1751038272408,-836.98798914,0.00024,7]
[368148599,1751038272418,-1000.0,0.00024034,2]
[368148600,1751038272429,-500.0,0.00024042,2]
[368148601,1751038272438,-151.0,0.00024062,7]
[368148602,1751038272448,-64385.50201614,0.00024062,2]
[368148603,1751038272458,-167.18330633,0.00024069,2]
[368148604,1751038272469,-200.0,0.0002408,10]
[368148605,1751038272479,-2000.0,0.000241,2]
[368148606,1751038272490,-2000.0,0.000241,2]
[368148607,1751038272501,-151.0,0.000241,7]
[368148608,1751038272511,-151.0,0.000241,7]
[368148609,1751038272520,-157.925943,0.000241,7]
[368148610,1751038272529,-508.877043,0.000241,2]
[368148611,1751038272538,-508.877043,0.000241,2]
[368148612,1751038272548,-151.320744,0.000241,7]
[368148613,1751038272557,-151.0,0.000241,7]
[368148614,1751038272566,-151.0,0.000241,7]
[368148615,1751038272576,-198.0,0.000241,7]
[368148616,1751038272586,-151.0,0.000241,7]
[368148617,1751038272595,-151.0,0.000241,7]
[368148618,1751038272604,-151.0,0.000241,7]
[368148619,1751038272615,-151.0,0.000241,7]
[368148620,1751038272625,-486.88458,0.000241,7]
[368148621,1751038272636,-486.88458,0.000241,7]
[368148622,1751038272645,-151.0,0.000241,7]
[368148623,1751038272656,-151.0,0.000241,7]
[368148624,1751038272666,-151.0,0.000241,7]
[368148625,1751038272677,-151.0,0.000241,7]
[368148626,1751038272687,-333.9512,0.000241,7]
[368148627,1751038272697,-333.9512,0.000241,7]
[368148628,1751038272707,-500.0,0.000241,2]
[368148629,1751038272716,-640.0,0.000241,2]
[368148630,1751038272726,-2466.011452,0.000241,7]
[368148631,1751038272736,-2466.011452,0.000241,7]
[368148632,1751038272745,-160.0,0.000241,10]
[368148633,1751038272755,-15498.2,0.000241,7]
[368148634,1751038272765,-160.0,0.000241,10]
[368148635,1751038272774,-1704.340604,0.000241,7]
[368148636,1751038272784,-1704.340604,0.000241,7]
[368148637,1751038272794,-195505.71,0.000241,7]
[368148638,1751038272803,-836.98798914,0.000241,10]
[368148639,1751038272813,-900.0,0.00024103,2]
[368148640,1751038272822,-487.3,0.00024109,2]
[368148641,1751038272832,-151.0,0.00024109,7]
[368148642,1751038272841,-151.0,0.00024109,7]
[368148643,1751038272851,-152.940868,0.00024109,7]
[368148644,1751038272861,-627.13,0.00024109,2]
[368148645,1751038272871,-483.88,0.00024109,2]
[368148646,1751038272880,-493.07,0.00024109,2]
[368148647,1751038272890,-151.0,0.00024109,7]
[368148648,1751038272900,-1636.33,0.00024109,2]
[368148649,1751038272909,-977.32,0.00024109,2]
[368148650,1751038272919,-5210.38,0.00024109,2]
[368148651,1751038272929,-524.72,0.00024109,2]
[368148652,1751038272939,-1615.3,0.00024109,2]
[368148653,1751038272949,-238.64,0.00024109,2]
[368148654,1751038272958,-821.81,0.00024109,2]
[368148655,1751038272967,-1051.43,0.00024109,2]
[368148656,1751038272977,-493.34,0.00024109,2]
[368148657,1751038272990,-151.0,0.00024109,7]
[368148658,1751038273000,-5570.99,0.00024109,2]
[368148659,1751038273010,-1168.98,0.00024109,2]
[368148660,1751038273021,-5551.03,0.00024109,2]
[368148661,1751038273030,-1027.11,0.00024109,2]
[368148662,1751038273041,-835.24,0.00024109,2]
[368148663,1751038273050,-729.15,0.00024109,2]
[368148664,1751038273061,-460.0,0.00024109,2]
[368148665,1751038273070,-1628.16,0.00024109,2]
[368148666,1751038273082,-648.14,0.00024109,2]
[368148667,1751038273093,-551.64,0.00024109,2]
[368148668,1751038273103,-3080.1,0.00024109,2]
[368148669,1751038273112,-714.787094,0.00024109,7]
[368148670,1751038273122,-3962.82,0.00024109,2]
[368148671,1751038273132,-714.787094,0.00024109,7]
[368148672,1751038273141,-482.95,0.00024109,2]
[368148673,1751038273152,-460.0,0.00024109,2]
[368148674,1751038273164,-460.0,0.00024109,2]
[368148675,1751038273173,-2701.86,0.00024109,2]
[368148676,1751038273183,-960.06,0.00024109,2]
[368148677,1751038273192,-460.0,0.00024109,2]
[368148678,1751038273202,-598.88,0.00024109,2]
[368148679,1751038273211,-460.0,0.00024109,2]
[368148680,1751038273220,-516.39,0.00024109,2]
[368148681,1751038273230,-1018.47,0.00024109,2]
[368148682,1751038273239,-1550.47,0.00024109,2]
[368148683,1751038273249,-1531.61,0.00024109,2]
[368148684,1751038273258,-1149.78,0.00024109,2]
[368148685,1751038273267,-1081.48,0.00024109,2]
[368148686,1751038273277,-584.17,0.00024109,2]
[368148687,1751038273287,-4259.37,0.00024109,2]
[368148688,1751038273296,-560.02,0.00024109,2]
[368148689,1751038273305,-1041.06,0.00024109,2]
[368148690,1751038273315,-460.0,0.00024109,2]
[368148691,1751038273324,-1937.51,0.00024109,2]
[368148692,1751038273334,-550.7,0.00024109,2]
[368148693,1751038273343,-3901.22,0.00024109,2]
[368148694,1751038273352,-1101.83,0.00024109,2]
[368148695,1751038273361,-930.7,0.00024109,2]
[368148696,1751038273370,-545.86,0.00024109,2]
[368148697,1751038273380,-693.99,0.00024109,2]
[368148698,1751038273389,-460.0,0.00024109,2]
[368148699,1751038273398,-855.32,0.00024109,2]
[368148700,1751038273407,-713.89,0.00024109,2]
[368148701,1751038273417,-2500.0,0.00024164,2]
[368148702,1751038273426,-3000.0,0.00024164,2]
[368148703,1751038273436,-1672.22325521,0.00024164,2]
[368148704,1751038273445,-2500.0,0.00024164,2]
[368148705,1751038273455,-2500.0,0.00024164,2]
[368148706,1751038273464,-2500.0,0.00024164,2]
[368148707,1751038273473,-350.0,0.00024169,2]
[368148708,1751038273482,-500.0,0.0002418,2]
[368148709,1751038273491,-575.118961,0.00024192,2]
[368148710,1751038273501,-575.118961,0.00024192,2]
[368148711,1751038273510,-575.118961,0.00024192,2]
[368148712,1751038273520,-153.0,0.00024192,2]
[368148713,1751038273529,-575.118961,0.00024192,2]
[368148714,1751038273538,-575.118961,0.00024192,2]
[368148715,1751038273547,-159.1939926,0.00024192,2]
[368148716,1751038273556,-337.678711,0.00024192,2]
[368148717,1751038273565,-153.0,0.00024192,2]
[368148718,1751038273577,-575.118961,0.00024192,2]
[368148719,1751038273586,-575.118961,0.00024192,2]
[368148720,1751038273594,-153.0,0.00024192,2]
[368148721,1751038273604,-575.118961,0.00024192,2]
[368148722,1751038273613,-153.0,0.00024192,2]
[368148723,1751038273623,-153.0,0.00024192,2]
[368148724,1751038273632,-154.4082959,0.00024192,2]
[368148725,1751038273641,-160.0,0.000242,10]
[368148726,1751038273651,-160.0,0.000242,10]
[368148727,1751038273661,-160.0,0.000242,10]
[368148728,1751038273671,-213.75309343,0.000242,10]
[368148729,1751038273680,-524.32400359,0.000242,10]
[368148730,1751038273690,-230.26210603,0.000242,10]
[368148731,1751038273699,-215.0738,0.00024202,2]
[368148732,1751038273709,-350.0,0.00024219,2]
[368148733,1751038273719,-2438.37668414,0.00024236,2]
[368148734,1751038273729,-500.0,0.00024244,2]
[368148735,1751038273739,-900.0,0.0002425,2]
[368148736,1751038273748,-730.4900384,0.00024254,2]
[368148737,1751038273757,-1000.0,0.00024266,2]
[368148738,1751038273766,-1000.0,0.00024278,2]
[368148739,1751038273776,-1185.90355848,0.00024285,2]
[368148740,1751038273786,-151.0,0.00024288,6]
[368148741,1751038273796,-151.0,0.000243,7]
[368148742,1751038273805,-151.0,0.000243,7]
[368148743,1751038273815,-151.0,0.000243,7]
[368148744,1751038273826,-151.0,0.000243,7]
[368148745,1751038273836,-428.381506,0.000243,7]
[368148746,1751038273845,-151.0,0.000243,7]
[368148747,1751038273855,-428.381506,0.000243,7]
[368148748,1751038273865,-196.311275,0.000243,7]
[368148749,1751038273875,-196.311275,0.000243,7]
[368148750,1751038273885,-150.0,0.000243,5]
[368148751,1751038273894,-500.0,0.000243,2]
[368148752,1751038273904,-500.0,0.000243,2]
[368148753,1751038273914,-500.0,0.000243,2]
[368148754,1751038273924,-188.525039,0.000243,2]
[368148755,1751038273933,-1283.9206,0.000243,2]
[368148756,1751038273943,-1283.9206,0.000243,2]
[368148757,1751038273953,-500.0,0.000243,7]
[368148758,1751038273962,-500.0,0.000243,7]
[368148759,1751038273972,-601.73193492,0.000243,7]
[368148760,1751038273982,-500.0,0.000243,7]
[368148761,1751038273991,-500.0,0.000243,7]
[368148762,1751038274000,-500.0,0.000243,7]
[368148763,1751038274009,-500.0,0.000243,7]
[368148764,1751038274019,-500.0,0.000243,7]
[368148765,1751038274028,-501.80959818,0.000243,7]
[368148766,1751038274039,-562292.23006826,0.00024305,5]
[368148767,1751038274048,-151.0,0.00024305,7]
[368148768,1751038274057,-151.0,0.00024305,7]
[368148769,1751038274066,-151.0,0.00024305,7]
[368148770,1751038274077,-151.0,0.00024305,7]
[368148771,1751038274090,-428.381506,0.00024305,7]
[368148772,1751038274099,-151.0,0.00024305,7]
[368148773,1751038274109,-428.381506,0.00024305,7]
[368148774,1751038274118,-196.311275,0.00024305,7]
[368148775,1751038274128,-196.311275,0.00024305,7]
[368148776,1751038274137,-151.0,0.00024305,7]
[368148777,1751038274147,-151.0,0.00024305,7]
[368148778,1751038274156,-151.0,0.00024305,7]
[368148779,1751038274165,-151.0,0.00024305,7]
[368148780,1751038274175,-219.514881,0.00024305,7]
[368148781,1751038274185,-151.0,0.00024305,7]
[368148782,1751038274195,-151.0,0.00024305,7]
[368148783,1751038274204,-230.793402,0.00024305,7]
[368148784,1751038274214,-151.0,0.00024305,7]
[368148785,1751038274224,-230.793402,0.00024305,7]
[368148786,1751038274234,-151.0,0.00024305,7]
[368148787,1751038274243,-607.615333,0.00024305,7]
[368148788,1751038274252,-154.342496,0.00024305,7]
[368148789,1751038274261,-151.0,0.00024305,7]
[368148790,1751038274270,-151.0,0.00024305,7]
[368148791,1751038274279,-481.353905,0.00024305,7]
[368148792,1751038274289,-481.353905,0.00024305,7]
[368148793,1751038274299,-151.0,0.00024305,7]
[368148794,1751038274308,-508.877043,0.00024305,2]
[368148795,1751038274318,-508.877043,0.00024305,2]
[368148796,1751038274328,-151.0,0.00024305,7]
[368148797,1751038274337,-152.442833,0.00024305,7]
[368148798,1751038274347,-151.0,0.00024305,7]
[368148799,1751038274356,-151.0,0.00024305,7]
[368148800,1751038274366,-151.0,0.00024305,7]
[368148801,1751038274376,-151.0,0.00024305,7]
[368148802,1751038274386,-151.0,0.00024305,7]
[368148803,1751038274398,-486.88458,0.00024305,7]
[368148804,1751038274407,-486.88458,0.00024305,7]
[368148805,1751038274418,-151.0,0.00024305,7]
[368148806,1751038274427,-151.0,0.00024305,7]
[368148807,1751038274437,-190.669086,0.00024305,7]
[368148808,1751038274446,-281.276653,0.00024305,7]
[368148809,1751038274456,-151.0,0.00024305,7]
[368148810,1751038274465,-333.9512,0.00024305,7]
[368148811,1751038274476,-333.9512,0.00024305,7]
[368148812,1751038274485,-151.0,0.00024305,7]
[368148813,1751038274494,-151.0,0.00024305,7]
[368148814,1751038274504,-714.787094,0.00024305,7]
[368148815,1751038274514,-714.787094,0.00024305,7]
[368148816,1751038274524,-2466.011452,0.00024305,7]
[368148817,1751038274533,-2466.011452,0.00024305,7]
[368148818,1751038274543,-151.0,0.00024305,7]
[368148819,1751038274552,-1704.340604,0.00024305,7]
[368148820,1751038274562,-437.811769,0.00024305,7]
[368148821,1751038274571,-1704.340604,0.00024305,7]
[368148822,1751038274582,-437.811769,0.00024305,7]
[368148823,1751038274591,-500.0,0.00024306,2]
[368148824,1751038274601,-2393.0,0.00024312,2]
[368148825,1751038274610,-900.0,0.00024316,2]
[368148826,1751038274619,-366.0,0.00024332,3]
[368148827,1751038274628,-1000.0,0.00024333,2]
[368148828,1751038274637,-432.12858055,0.0002435,2]
[368148829,1751038274646,-500.0,0.00024357,2]
[368148830,1751038274655,-487.3,0.00024383,2]
[368148831,1751038274665,-627.13,0.00024383,2]
[368148832,1751038274675,-493.07,0.00024383,2]
[368148833,1751038274684,-1636.33,0.00024383,2]
[368148834,1751038274693,-977.32,0.00024383,2]
[368148835,1751038274703,-5210.38,0.00024383,2]
[368148836,1751038274713,-524.72,0.00024383,2]
[368148837,1751038274723,-1615.3,0.00024383,2]
[368148838,1751038274732,-821.81,0.00024383,2]
[368148839,1751038274742,-1051.43,0.00024383,2]
[368148840,1751038274752,-493.34,0.00024383,2]
[368148841,1751038274762,-5570.99,0.00024383,2]
[368148842,1751038274772,-1168.98,0.00024383,2]
[368148843,1751038274782,-5551.03,0.00024383,2]
[368148844,1751038274791,-1027.11,0.00024383,2]
[368148845,1751038274801,-835.24,0.00024383,2]
[368148846,1751038274916,-729.15,0.00024383,2]
[368148847,1751038274926,-460.0,0.00024383,2]
[368148848,1751038274935,-1628.16,0.00024383,2]
[368148849,1751038274945,-648.14,0.00024383,2]
[368148850,1751038274954,-551.64,0.00024383,2]
[368148851,1751038274965,-3080.1,0.00024383,2]
[368148852,1751038274975,-3962.82,0.00024383,2]
[368148853,1751038274985,-482.95,0.00024383,2]
[368148854,1751038274994,-460.0,0.00024383,2]
[368148855,1751038275004,-460.0,0.00024383,2]
[368148856,1751038275013,-2701.86,0.00024383,2]
[368148857,1751038275024,-960.06,0.00024383,2]
[368148858,1751038275034,-598.88,0.00024383,2]
[368148859,1751038275044,-460.0,0.00024383,2]
[368148860,1751038275054,-460.0,0.00024383,2]
[368148861,1751038275063,-516.39,0.00024383,2]
[368148862,1751038275073,-1018.47,0.00024383,2]
[368148863,1751038275083,-1550.47,0.00024383,2]
[368148864,1751038275095,-1531.61,0.00024383,2]
[368148865,1751038275104,-1149.78,0.00024383,2]
[368148866,1751038275115,-1081.48,0.00024383,2]
[368148867,1751038275130,-584.17,0.00024383,2]
[368148868,1751038275140,-4259.37,0.00024383,2]
[368148869,1751038275150,-560.02,0.00024383,2]
[368148870,1751038275159,-1041.06,0.00024383,2]
[368148871,1751038275170,-460.0,0.00024383,2]
[368148872,1751038275180,-1937.51,0.00024383,2]
[368148873,1751038275190,-550.7,0.00024383,2]
[368148874,1751038275199,-3901.22,0.00024383,2]
[368148875,1751038275209,-1101.83,0.00024383,2]
[368148876,1751038275219,-930.7,0.00024383,2]
[368148877,1751038275228,-545.86,0.00024383,2]
[368148878,1751038275238,-693.99,0.00024383,2]
[368148879,1751038275247,-578.53,0.00024383,2]
[368148880,1751038275256,-855.32,0.00024383,2]
[368148881,1751038275266,-713.89,0.00024383,2]
[368148882,1751038275276,-315.43049487,0.00024428,2]
[368148883,1751038275286,-189.25829692,0.00024428,2]
[368148884,1751038275295,-460.0,0.00024428,2]
[368148885,1751038275305,-460.0,0.00024428,2]
[368148886,1751038275314,-460.0,0.00024428,2]
[368148887,1751038275324,-432.50073679,0.00024428,2]
[368148888,1751038275334,-375.0,0.00024428,2]
[368148889,1751038275343,-225.0,0.00024428,2]
[368148890,1751038275353,-400.53958039,0.00024428,2]
[368148891,1751038275362,-176.0,0.00024472,2]
[368148892,1751038275372,-5000.0,0.00024477,2]
[368148893,1751038275381,-159.2394861,0.00024486,2]
[368148894,1751038275391,-177.4788171,0.00024486,2]
[368148895,1751038275400,-153.0,0.00024486,2]
[368148896,1751038275410,-575.118961,0.00024486,2]
[368148897,1751038275419,-318.4789722,0.00024486,2]
[368148898,1751038275429,-177.4788171,0.00024486,2]
[368148899,1751038275439,-153.0,0.00024486,2]
[368148900,1751038275448,-575.118961,0.00024486,2]
[368148901,1751038275458,-318.3138282,0.00024486,2]
[368148902,1751038275467,-1156.450844,0.00024486,2]
[368148903,1751038275476,-153.0,0.00024486,2]
[368148904,1751038275485,-306.0,0.00024486,2]
[368148905,1751038275495,-355.487503,0.00024486,2]
[368148906,1751038275504,-153.0,0.00024486,2]
[368148907,1751038275514,-153.0,0.00024486,2]
[368148908,1751038275523,-900.0,0.00024495,2]
[368148909,1751038275532,-1000.0,0.00024499,2]
[368148910,1751038275542,-200.0,0.000245,2]
[368148911,1751038275551,-500.0,0.000245,30]
[368148912,1751038275560,-1000.0,0.00024564,2]
[368148913,1751038275570,-900.0,0.00024588,2]
[368148914,1751038275582,-500.0,0.00024642,2]
[368148915,1751038275592,-1000.0,0.00024647,2]
[368148916,1751038275601,-500.0,0.00024649,2]
[368148917,1751038275610,-33508.19658589,0.0002465,7]
[368148918,1751038275620,-200.0123441,0.0002465,2]
[368148919,1751038275629,-500.65157962,0.0002465,2]
[368148920,1751038275639,-438510.48374145,0.0002465,2]
[368148921,1751038275649,-382.59,0.0002465,30]
[368148922,1751038275659,-292.96596,0.0002465,7]
[368148923,1751038275669,-151.0,0.0002465,7]
[368148924,1751038275678,-151.0,0.0002465,7]
[368148925,1751038275687,-184.788545,0.0002465,7]
[368148926,1751038275696,-151.0,0.0002465,7]
[368148927,1751038275706,-428.381506,0.0002465,7]
[368148928,1751038275715,-151.0,0.0002465,7]
[368148929,1751038275725,-428.381506,0.0002465,7]
[368148930,1751038275734,-196.311275,0.0002465,7]
[368148931,1751038275745,-196.311275,0.0002465,7]
[368148932,1751038275754,-151.0,0.0002465,7]
[368148933,1751038275763,-151.0,0.0002465,7]
[368148934,1751038275773,-151.0,0.0002465,7]
[368148935,1751038275783,-151.0,0.0002465,7]
[368148936,1751038275792,-153.707783,0.0002465,7]
[368148937,1751038275802,-217.838062,0.0002465,7]
[368148938,1751038275812,-188.468815,0.0002465,7]
[368148939,1751038275821,-151.0,0.0002465,7]
[368148940,1751038275831,-151.0,0.0002465,7]
[368148941,1751038275841,-151.0,0.0002465,7]
[368148942,1751038275851,-153.480262,0.0002465,7]
[368148943,1751038275860,-151.0,0.0002465,7]
[368148944,1751038275870,-279.348938,0.0002465,7]
[368148945,1751038275880,-230.793402,0.0002465,7]
[368148946,1751038275889,-151.0,0.0002465,7]
[368148947,1751038275899,-230.793402,0.0002465,7]
[368148948,1751038275909,-151.0,0.0002465,7]
[368148949,1751038275918,-607.615333,0.0002465,7]
[368148950,1751038275927,-151.0,0.0002465,7]
[368148951,1751038275936,-151.0,0.0002465,7]
[368148952,1751038275946,-481.353905,0.0002465,7]
[368148953,1751038275955,-481.353905,0.0002465,7]
[368148954,1751038275964,-272.987476,0.0002465,7]
[368148955,1751038275974,-508.877043,0.0002465,2]
[368148956,1751038275983,-508.877043,0.0002465,2]
[368148957,1751038275992,-151.0,0.0002465,7]
[368148958,1751038276002,-151.0,0.0002465,7]
[368148959,1751038276012,-151.0,0.0002465,7]
[368148960,1751038276021,-151.0,0.0002465,7]
[368148961,1751038276030,-151.0,0.0002465,7]
[368148962,1751038276039,-151.0,0.0002465,7]
[368148963,1751038276049,-486.88458,0.0002465,7]
[368148964,1751038276058,-486.88458,0.0002465,7]
[368148965,1751038276067,-151.0,0.0002465,7]
[368148966,1751038276077,-151.0,0.0002465,7]
[368148967,1751038276090,-151.0,0.0002465,7]
[368148968,1751038276099,-333.9512,0.0002465,7]
[368148969,1751038276108,-333.9512,0.0002465,7]
[368148970,1751038276118,-151.0,0.0002465,7]
[368148971,1751038276129,-151.0,0.0002465,7]
[368148972,1751038276139,-714.787094,0.0002465,7]
[368148973,1751038276149,-714.787094,0.0002465,7]
[368148974,1751038276159,-2466.011452,0.0002465,7]
[368148975,1751038276169,-2466.011452,0.0002465,7]
[368148976,1751038276178,-151.0,0.0002465,7]
[368148977,1751038276187,-1704.340604,0.0002465,7]
[368148978,1751038276197,-437.811769,0.0002465,7]
[368148979,1751038276206,-1704.340604,0.0002465,7]
[368148980,1751038276216,-437.811769,0.0002465,7]
[368148981,1751038276225,-500.0,0.00024656,2]
[368148982,1751038276234,-500.0,0.00024656,2]
[368148983,1751038276243,-487.3,0.00024657,2]
[368148984,1751038276253,-627.13,0.00024657,2]
[368148985,1751038276262,-493.07,0.00024657,2]
[368148986,1751038276271,-1636.33,0.00024657,2]
[368148987,1751038276280,-977.32,0.00024657,2]
[368148988,1751038276289,-5210.38,0.00024657,2]
[368148989,1751038276299,-524.72,0.00024657,2]
[368148990,1751038276308,-1615.3,0.00024657,2]
[368148991,1751038276318,-821.81,0.00024657,2]
[368148992,1751038276328,-1051.43,0.00024657,2]
[368148993,1751038276338,-493.34,0.00024657,2]
[368148994,1751038276347,-5570.99,0.00024657,2]
[368148995,1751038276356,-1168.98,0.00024657,2]
[368148996,1751038276366,-5551.03,0.00024657,2]
[368148997,1751038276375,-1027.11,0.00024657,2]
[368148998,1751038276386,-835.24,0.00024657,2]
[368148999,1751038276395,-729.15,0.00024657,2]
[368149000,1751038276406,-542.59,0.00024657,2]
[368149001,1751038276418,-1628.16,0.00024657,2]
[368149002,1751038276428,-648.14,0.00024657,2]
[368149003,1751038276439,-551.64,0.00024657,2]
[368149004,1751038276450,-527.17,0.00024657,2]
[368149005,1751038276460,-3080.1,0.00024657,2]
[368149006,1751038276470,-527.17,0.00024657,2]
[368149007,1751038276481,-527.17,0.00024657,2]
[368149008,1751038276491,-527.17,0.00024657,2]
[368149009,1751038276503,-527.17,0.00024657,2]
[368149010,1751038276514,-527.17,0.00024657,2]
[368149011,1751038276523,-527.17,0.00024657,2]
[368149012,1751038276533,-527.17,0.00024657,2]
[368149013,1751038276543,-527.17,0.00024657,2]
[368149014,1751038276553,-527.17,0.00024657,2]
[368149015,1751038276563,-527.17,0.00024657,2]
[368149016,1751038276572,-527.17,0.00024657,2]
[368149017,1751038276582,-527.17,0.00024657,2]
[368149018,1751038276590,-527.17,0.00024657,2]
[368149019,1751038276599,-527.17,0.00024657,2]
[368149020,1751038276608,-527.17,0.00024657,2]
[368149021,1751038276617,-527.17,0.00024657,2]
[368149022,1751038276626,-3962.82,0.00024657,2]
[368149023,1751038276635,-527.17,0.00024657,2]
[368149024,1751038276644,-527.17,0.00024657,2]
[368149025,1751038276654,-527.17,0.00024657,2]
[368149026,1751038276664,-527.17,0.00024657,2]